fUST/lending_fUST_20250723
["ID","MTS","AMOUNT","RATE_DAILY","PERIOD"]
[374094999,1753201839128,-460.0,0.00016838,2]
[374095000,1753201839137,-460.0,0.00016838,2]
[374095001,1753201839147,-460.0,0.00016838,2]
[374095002,1753201839156,-460.0,0.00016838,2]
[374095003,1753201839165,-460.0,0.00016838,2]
[374095004,1753201839175,-460.0,0.00016838,2]
[374095005,1753201839184,-461.03584063,0.00016838,2]
[374095006,1753201839193,-460.0,0.00016838,2]
[374095007,1753201839354,-417.52800515,0.00016838,2]
[374095008,1753201839368,-460.0,0.00016838,2]
[374095009,1753201839377,-460.0,0.00016838,2]
[374095010,1753201839387,-202.97774291,0.00016838,2]
[374095011,1753201839396,-460.0,0.00016838,2]
[374095012,1753201839406,-460.0,0.00016838,2]
[374095013,1753201839415,-460.0,0.00016838,2]
[374095014,1753201839424,-460.0,0.00016838,2]
[374095015,1753201839434,-460.0,0.00016838,2]
[374095016,1753201839443,-460.0,0.00016838,2]
[374095017,1753201839453,-460.0,0.00016838,2]
[374095018,1753201839464,-460.0,0.00016838,2]
[374095019,1753201839474,-460.0,0.00016838,2]
[374095020,1753201839484,-460.0,0.00016838,2]
[374095021,1753201839494,-460.0,0.00016838,2]
[374095022,1753201839504,-529.68625105,0.00016838,2]
[374095023,1753201839513,-460.0,0.00016838,2]
[374095024,1753201839523,-460.0,0.00016838,2]
[374095025,1753201839533,-460.0,0.00016838,2]
[374095026,1753201839543,-446.49327071,0.00016838,2]
[374095027,1753201839552,-460.0,0.00016838,2]
[374095028,1753201839562,-460.0,0.00016838,2]
[374095029,1753201839571,-460.0,0.00016838,2]
[374095030,1753201839581,-603.93446867,0.00016838,2]
[374095031,1753201839592,-460.0,0.00016838,2]
[374095032,1753201839602,-460.0,0.00016838,2]
[374095033,1753201839611,-460.0,0.00016838,2]
[374095034,1753201839621,-460.0,0.00016838,2]
[374095035,1753201839630,-460.91715273,0.00016838,2]
[374095037,1753201839640,-460.0,0.00016838,2]
[374095038,1753201839650,-460.0,0.00016838,2]
[374095040,1753201839661,-460.70338835,0.00016838,2]
[374095041,1753201839671,-460.0,0.00016838,2]
[374095042,1753201839681,-460.0,0.00016838,2]
[374095043,1753201839695,-460.0,0.00016838,2]
[374095044,1753201839704,-460.0,0.00016838,2]
[374095045,1753201839714,-607.38,0.00016838,2]
[374095046,1753201839726,-460.0,0.00016838,2]
[374095047,1753201839735,-460.0,0.00016838,2]
[374095048,1753201839745,-460.0,0.00016838,2]
[374095049,1753201839754,-460.0,0.00016838,2]
[374095050,1753201839764,-460.0,0.00016838,2]
[374095051,1753201839773,-460.0,0.00016838,2]
[374095052,1753201839782,-460.0,0.00016838,2]
[374095053,1753201839791,-460.0,0.00016838,2]
[374095054,1753201839800,-460.0,0.00016838,2]
[374095056,1753201839810,-460.0,0.00016838,2]
[374095057,1753201839819,-460.0,0.00016838,2]
[374095058,1753201839828,-460.0,0.00016838,2]
[374095059,1753201839837,-460.0,0.00016838,2]
[374095060,1753201839846,-460.0,0.00016838,2]
[374095061,1753201839856,-460.0,0.00016838,2]
[374095063,1753201839866,-460.0,0.00016838,2]
[374095064,1753201839875,-500.0,0.00016838,2]
[374095065,1753201839885,-460.0,0.00016838,2]
[374095067,1753201839894,-151.0,0.00016838,2]
[374095068,1753201839904,-151.0,0.00016838,2]
[374095069,1753201839914,-509.22,0.00016838,2]
[374095070,1753201839924,-460.0,0.00016838,2]
[374095071,1753201839934,-460.0,0.00016838,2]
[374095072,1753201839943,-460.0,0.00016838,2]
[374095073,1753201839953,-460.0,0.00016838,2]
[374095074,1753201839962,-274.18338261,0.00016838,2]
[374095075,1753201839975,-151.0,0.00016838,2]
[374095076,1753201839985,-151.0,0.00016838,2]
[374095077,1753201839995,-151.0,0.00016838,2]
[374095078,1753201840005,-460.0,0.00016838,2]
[374095079,1753201840015,-211.12151948,0.00016838,2]
[374095081,1753201840025,-151.0,0.00016838,2]
[374095082,1753201840034,-911.02,0.00016838,2]
[374095083,1753201840044,-460.0,0.00016838,2]
[374095084,1753201840054,-1314.88,0.00016838,2]
[374095085,1753201840063,-14652.61391877,0.00016839,2]
[374095087,1753201840073,-24900.0,0.00016839,2]
[374095089,1753201840082,-50071.1017302,0.00016918,2]
[374095090,1753201840091,-365.34,0.0001699,3]
[374095093,1753201840101,-7039.11728174,0.00017,2]
[374095095,1753201840110,-462.58204668,0.00017032,2]
[374095097,1753201840120,-460.0,0.00017032,2]
[374095099,1753201840131,-460.0,0.00017032,2]
[374095101,1753201840141,-460.0,0.00017032,2]
[374095103,1753201840150,-460.0,0.00017032,2]
[374095105,1753201840159,-558.99,0.00017032,2]
[374095107,1753201840168,-460.0,0.00017032,2]
[374095109,1753201840177,-364.81999999,0.00017032,2]
[374095111,1753201840186,-460.0,0.00017032,2]
[374095112,1753201840195,-460.0,0.00017032,2]
[374095115,1753201840204,-196.0227969,0.00017032,2]
[374095116,1753201840214,-460.0,0.00017032,2]
[374095118,1753201840224,-460.0,0.00017032,2]
[374095120,1753201840234,-460.0,0.00017032,2]
[374095121,1753201840244,-460.0,0.00017032,2]
[374095122,1753201840253,-460.0,0.00017032,2]
[374095123,1753201840262,-460.0,0.00017032,2]
[374095124,1753201840272,-460.0,0.00017032,2]
[374095125,1753201840283,-460.0,0.00017032,2]
[374095126,1753201840293,-460.0,0.00017032,2]
[374095127,1753201840303,-500.0,0.00017032,2]
[374095128,1753201840313,-460.0,0.00017032,2]
[374095129,1753201840323,-460.0,0.00017032,2]
[374095130,1753201840332,-460.0,0.00017032,2]
[374095131,1753201840341,-460.0,0.00017032,2]
[374095132,1753201840351,-460.0,0.00017032,2]
[374095133,1753201840360,-465.44983899,0.00017032,2]
[374095134,1753201840370,-460.0,0.00017032,2]
[374095135,1753201840379,-460.0,0.00017032,2]
[374095136,1753201840389,-460.0,0.00017032,2]
[374095137,1753201840399,-460.0,0.00017032,2]
[374095138,1753201840409,-460.0,0.00017033,2]
[374095139,1753201840418,-460.0,0.00017033,2]
[374095140,1753201840427,-460.0,0.00017033,2]
[374095141,1753201840436,-460.0,0.00017033,2]
[374095143,1753201840446,-460.0,0.00017033,2]
[374095145,1753201840456,-460.0,0.00017033,2]
[374095147,1753201840466,-460.0,0.00017033,2]
[374095148,1753201840476,-460.0,0.00017033,2]
[374095149,1753201840485,-458.33004213,0.00017033,2]
[374095150,1753201840495,-460.33238742,0.00017033,2]
[374095151,1753201840505,-460.0,0.00017033,2]
[374095152,1753201840515,-460.0,0.00017033,2]
[374095153,1753201840524,-460.0,0.00017033,2]
[374095154,1753201840534,-460.0,0.00017033,2]
[374095155,1753201840543,-473.31418441,0.00017033,2]
[374095156,1753201840553,-470.20608457,0.00017033,2]
[374095157,1753201840562,-500.0,0.00017033,2]
[374095158,1753201840572,-1534.86,0.00017033,2]
[374095159,1753201840581,-460.0,0.00017034,2]
[374095160,1753201840592,-500.0,0.00017034,2]
[374095161,1753201840601,-460.0,0.00017034,2]
[374095162,1753201840611,-460.0,0.00017035,2]
[374095163,1753201840619,-162.08,0.00017035,2]
[374095164,1753201840629,-522.0,0.00017035,2]
[374095165,1753201840637,-897.23,0.00017035,2]
[374095166,1753201840647,-460.0,0.00017035,2]
[374095167,1753201840657,-500.0,0.00017072,2]
[374095169,1753201840666,-1559.51,0.00017111,2]
[374095170,1753201840675,-460.0,0.00017111,2]
[374095171,1753201840686,-990.03,0.00017111,2]
[374095172,1753201840698,-460.0,0.00017111,2]
[374095173,1753201840707,-944.46,0.00017111,2]
[374095174,1753201840716,-460.0,0.00017111,2]
[374095175,1753201840725,-460.0,0.00017111,2]
[374095176,1753201840737,-779.94,0.00017111,2]
[374095177,1753201840746,-460.0,0.00017111,2]
[374095178,1753201840756,-460.0,0.00017111,2]
[374095179,1753201840767,-1883.93,0.00017111,2]
[374095180,1753201840776,-500.0,0.00017112,2]
[374095181,1753201840786,-151.0,0.00017112,2]
[374095182,1753201840796,-151.0,0.00017112,2]
[374095183,1753201840805,-151.0,0.00017112,2]
[374095184,1753201840815,-151.0,0.00017112,2]
[374095185,1753201840824,-460.0,0.00017112,2]
[374095186,1753201840833,-460.0,0.00017112,2]
[374095187,1753201840843,-460.0,0.00017112,2]
[374095188,1753201840852,-460.0,0.00017112,2]
[374095189,1753201840862,-460.0,0.00017112,2]
[374095190,1753201840872,-460.0,0.00017112,2]
[374095191,1753201840881,-460.0,0.00017112,2]
[374095192,1753201840890,-460.0,0.00017112,2]
[374095193,1753201840900,-460.0,0.00017112,2]
[374095194,1753201840910,-460.0,0.00017112,2]
[374095195,1753201840919,-460.0,0.00017112,2]
[374095196,1753201840928,-504.36,0.00017112,2]
[374095197,1753201840937,-460.0,0.00017112,2]
[374095198,1753201840947,-460.0,0.00017112,2]
[374095199,1753201840956,-460.0,0.00017112,2]
[374095200,1753201840967,-460.0,0.00017112,2]
[374095201,1753201840977,-911.02,0.00017112,2]
[374095202,1753201840987,-460.0,0.00017112,2]
[374095203,1753201840996,-1314.88,0.00017112,2]
[374095204,1753201841006,-460.0,0.00017306,2]
[374095205,1753201841015,-558.99,0.00017306,2]
[374095206,1753201841025,-460.0,0.00017306,2]
[374095207,1753201841034,-460.0,0.00017306,2]
[374095208,1753201841044,-460.0,0.00017306,2]
[374095209,1753201841053,-460.0,0.00017306,2]
[374095210,1753201841063,-460.0,0.00017306,2]
[374095211,1753201841072,-460.0,0.00017306,2]
[374095212,1753201841081,-460.0,0.00017307,2]
[374095213,1753201841091,-460.0,0.00017307,2]
[374095214,1753201841101,-420.73,0.00017307,2]
[374095215,1753201841111,-1534.86,0.00017307,2]
[374095216,1753201841121,-460.0,0.00017308,2]
[374095217,1753201841131,-460.0,0.00017308,2]
[374095218,1753201841141,-522.0,0.00017309,2]
[374095219,1753201841150,-460.0,0.00017309,2]
[374095220,1753201841159,-897.23,0.00017309,2]
[374095221,1753201841169,-460.0,0.00017309,2]
[374095223,1753201841178,-1559.51,0.00017385,2]
[374095224,1753201841187,-460.0,0.00017385,2]
[374095225,1753201841197,-990.03,0.00017385,2]
[374095226,1753201841206,-460.0,0.00017385,2]
[374095227,1753201841216,-944.46,0.00017385,2]
[374095228,1753201841226,-460.0,0.00017385,2]
[374095229,1753201841235,-460.0,0.00017385,2]
[374095230,1753201841246,-779.94,0.00017385,2]
[374095231,1753201841255,-460.0,0.00017385,2]
[374095232,1753201841264,-460.0,0.00017385,2]
[374095233,1753201841274,-1883.93,0.00017385,2]
[374095234,1753201841283,-500.0,0.00017386,2]
[374095235,1753201841292,-198.0,0.00017386,2]
[374095236,1753201841301,-151.0,0.00017386,2]
[374095237,1753201841310,-460.0,0.00017386,2]
[374095238,1753201841319,-460.0,0.00017386,2]
[374095239,1753201841329,-460.0,0.00017386,2]
[374095240,1753201841338,-460.0,0.00017386,2]
[374095241,1753201841348,-460.0,0.00017386,2]
[374095242,1753201841357,-460.0,0.00017386,2]
[374095243,1753201841367,-460.0,0.00017386,2]
[374095244,1753201841376,-576.80878478,0.00017386,2]
[374095245,1753201841385,-460.0,0.00017386,2]
[374095246,1753201841395,-460.0,0.00017386,2]
[374095247,1753201841405,-460.0,0.00017386,2]
[374095248,1753201841415,-460.0,0.00017386,2]
[374095249,1753201841424,-460.0,0.00017386,2]
[374095250,1753201841434,-385.70140025,0.00017386,2]
[374095251,1753201841444,-460.0,0.00017386,2]
[374095252,1753201841453,-911.02,0.00017386,2]
[374095253,1753201841463,-264.68643456,0.00017386,2]
[374095254,1753201841473,-1314.88,0.00017386,2]
[374095255,1753201841482,-728.4843133,0.00017483,2]
[374095256,1753201841492,-460.0,0.0001758,2]
[374095257,1753201841501,-558.99,0.0001758,2]
[374095258,1753201841510,-307.62682723,0.0001758,2]
[374095259,1753201841520,-460.0,0.0001758,2]
[374095260,1753201841529,-460.0,0.0001758,2]
[374095261,1753201841539,-460.0,0.0001758,2]
[374095262,1753201841548,-460.0,0.0001758,2]
[374095263,1753201841558,-460.0,0.0001758,2]
[374095264,1753201841568,-460.0,0.00017581,2]
[374095265,1753201841577,-1534.86,0.00017581,2]
[374095266,1753201841585,-460.0,0.00017582,2]
[374095267,1753201841593,-460.0,0.00017582,2]
[374095268,1753201841602,-522.0,0.00017583,2]
[374095269,1753201841612,-460.0,0.00017583,2]
[374095270,1753201841620,-897.23,0.00017583,2]
[374095271,1753201841629,-460.0,0.00017583,2]
[374095272,1753201841638,-1559.51,0.00017659,2]
[374095273,1753201841646,-460.0,0.00017659,2]
[374095274,1753201841655,-990.03,0.00017659,2]
[374095275,1753201841663,-460.0,0.00017659,2]
[374095276,1753201841671,-944.46,0.00017659,2]
[374095277,1753201841682,-460.0,0.00017659,2]
[374095278,1753201841696,-538.47238852,0.00017659,2]
[374095279,1753201841705,-779.94,0.00017659,2]
[374095280,1753201841714,-441.56878748,0.00017659,2]
[374095281,1753201841724,-460.0,0.00017659,2]
[374095282,1753201841734,-1883.93,0.00017659,2]
[374095283,1753201841744,-500.0,0.0001766,2]
[374095284,1753201841753,-198.0,0.0001766,2]
[374095285,1753201841765,-460.0,0.0001766,2]
[374095286,1753201841774,-460.0,0.0001766,2]
[374095287,1753201841784,-166.26388432,0.0001766,2]
[374095288,1753201841793,-460.0,0.0001766,2]
[374095289,1753201841803,-460.0,0.0001766,2]
[374095290,1753201841812,-460.0,0.0001766,2]
[374095291,1753201841821,-460.0,0.0001766,2]
[374095292,1753201841831,-552.80743946,0.0001766,2]
[374095293,1753201841841,-460.0,0.0001766,2]
[374095294,1753201841853,-606.7823924,0.0001766,2]
[374095295,1753201841863,-460.0,0.0001766,2]
[374095296,1753201841873,-460.0,0.0001766,2]
[374095297,1753201841883,-460.0,0.0001766,2]
[374095298,1753201841892,-911.02,0.0001766,2]
[374095299,1753201841902,-1314.88,0.0001766,2]
[374095300,1753201841911,-500.0,0.00017847,2]
[374095301,1753201841920,-500.0,0.00017847,2]
[374095302,1753201841929,-280.65641991,0.00017847,2]
[374095303,1753201841939,-502.64339329,0.00017847,2]
[374095304,1753201841948,-558.99,0.00017854,2]
[374095305,1753201841958,-425.32709091,0.00017854,2]
[374095306,1753201841968,-460.0,0.00017854,2]
[374095307,1753201841979,-320.8,0.00017854,2]
[374095308,1753201841988,-460.0,0.00017854,2]
[374095309,1753201841998,-460.0,0.00017854,2]
[374095310,1753201842007,-460.0,0.00017855,2]
[374095311,1753201842017,-1534.86,0.00017855,2]
[374095312,1753201842026,-460.0,0.00017856,2]
[374095313,1753201842035,-460.0,0.00017856,2]
[374095314,1753201842045,-522.0,0.00017857,2]
[374095315,1753201842054,-460.0,0.00017857,2]
[374095316,1753201842063,-897.23,0.00017857,2]
[374095317,1753201842073,-464.0,0.00017857,2]
[374095318,1753201842082,-1109.63266404,0.000179,2]
[374095319,1753201842090,-214.6393183,0.00017919,2]
[374095320,1753201842099,-1559.51,0.00017933,2]
[374095321,1753201842108,-460.0,0.00017933,2]
[374095322,1753201842118,-990.03,0.00017933,2]
[374095323,1753201842127,-460.0,0.00017933,2]
[374095324,1753201842137,-944.46,0.00017933,2]
[374095325,1753201842146,-460.0,0.00017933,2]
[374095326,1753201842155,-779.94,0.00017933,2]
[374095327,1753201842165,-460.0,0.00017933,2]
[374095328,1753201842174,-1883.93,0.00017933,2]
[374095329,1753201842184,-500.0,0.00017934,2]
[374095330,1753201842194,-460.0,0.00017934,2]
[374095331,1753201842203,-237.68,0.00017934,2]
[374095332,1753201842212,-460.0,0.00017934,2]
[374095333,1753201842224,-498.14,0.00017934,2]
[374095334,1753201842233,-285.76937878,0.00017934,2]
[374095335,1753201842243,-460.0,0.00017934,2]
[374095336,1753201842252,-389.07,0.00017934,2]
[374095337,1753201842262,-460.0,0.00017934,2]
[374095338,1753201842271,-460.0,0.00017934,2]
[374095339,1753201842280,-460.0,0.00017934,2]
[374095340,1753201842288,-911.02,0.00017934,2]
[374095341,1753201842297,-1314.88,0.00017934,2]
[374095342,1753201842305,-500.0,0.00017945,2]
[374095343,1753201842420,-728.48431328,0.00017963,2]
[374095344,1753201842430,-500.0,0.00018,2]
[374095345,1753201842440,-14888.69708495,0.00018,2]
[374095346,1753201842450,-5931.99897974,0.00018,2]
[374095347,1753201842459,-3796.07466904,0.00018031,2]
[374095348,1753201842469,-558.99,0.00018128,2]
[374095349,1753201842480,-460.0,0.00018128,2]
[374095350,1753201842489,-472.61023437,0.00018128,2]
[374095351,1753201842499,-460.0,0.00018128,2]
[374095352,1753201842509,-342.21574558,0.00018129,2]
[374095353,1753201842518,-1534.86,0.00018129,2]
[374095354,1753201842528,-460.0,0.0001813,2]
[374095355,1753201842538,-460.0,0.0001813,2]
[374095356,1753201842546,-522.0,0.00018131,2]
[374095357,1753201842555,-460.0,0.00018131,2]
[374095358,1753201842565,-897.23,0.00018131,2]
[374095359,1753201842574,-1109.63266383,0.00018176,2]
[374095360,1753201842584,-500.0,0.00018201,2]
[374095361,1753201842594,-389.40416893,0.00018201,2]
[374095362,1753201842604,-800.0,0.00018202,2]
[374095363,1753201842613,-1559.51,0.00018207,2]
[374095364,1753201842622,-221.8448674,0.00018207,2]
[374095365,1753201842632,-990.03,0.00018207,2]
[374095367,1753201842643,-340.5862972,0.00018207,2]
[374095368,1753201842652,-944.46,0.00018207,2]
[374095369,1753201842661,-507.03818832,0.00018207,2]
[374095370,1753201842670,-779.94,0.00018207,2]
[374095371,1753201842679,-460.0,0.00018207,2]
[374095372,1753201842691,-1883.93,0.00018207,2]
[374095373,1753201842700,-500.0,0.00018208,2]
[374095374,1753201842710,-594.7788558,0.00018208,2]
[374095375,1753201842720,-460.0,0.00018208,2]
[374095376,1753201842730,-460.0,0.00018208,2]
[374095377,1753201842740,-460.0,0.00018208,2]
[374095378,1753201842750,-460.0,0.00018208,2]
[374095379,1753201842761,-540.72,0.00018208,2]
[374095380,1753201842771,-911.02,0.00018208,2]
[374095381,1753201842780,-1314.88,0.00018208,2]
[374095382,1753201842790,-502.39595311,0.00018395,2]
[374095383,1753201842799,-424.80703423,0.00018395,2]
[374095385,1753201842809,-460.0,0.00018401,2]
[374095387,1753201842819,-460.0,0.00018401,2]
[374095389,1753201842828,-460.0,0.00018401,2]
[374095391,1753201842838,-460.0,0.00018401,2]
[374095393,1753201842848,-558.99,0.00018402,2]
[374095395,1753201842857,-460.0,0.00018402,2]
[374095398,1753201842868,-460.0,0.00018402,2]
[374095399,1753201842878,-1534.86,0.00018403,2]
[374095400,1753201842887,-460.0,0.00018404,2]
[374095402,1753201842897,-460.0,0.00018404,2]
[374095404,1753201842907,-522.0,0.00018405,2]
[374095406,1753201842916,-460.0,0.00018405,2]
[374095408,1753201842925,-897.23,0.00018405,2]
[374095409,1753201842935,-728.48431328,0.00018442,2]
[374095410,1753201842945,-1109.63266383,0.00018452,2]
[374095411,1753201842954,-1559.51,0.00018481,2]
[374095412,1753201842963,-990.03,0.00018481,2]
[374095413,1753201842972,-944.46,0.00018481,2]
[374095414,1753201842982,-779.94,0.00018481,2]
[374095415,1753201842991,-460.0,0.00018481,2]
[374095416,1753201843001,-1883.93,0.00018481,2]
[374095417,1753201843011,-500.0,0.00018482,2]
[374095418,1753201843020,-460.0,0.00018482,2]
[374095419,1753201843030,-460.0,0.00018482,2]
[374095420,1753201843039,-460.0,0.00018482,2]
[374095421,1753201843049,-460.0,0.00018482,2]
[374095422,1753201843058,-911.02,0.00018482,2]
[374095423,1753201843068,-1314.88,0.00018482,2]
[374095424,1753201843077,-218.33169195,0.00018493,2]
[374095425,1753201843086,-460.0,0.00018675,2]
[374095426,1753201843096,-460.0,0.00018675,2]
[374095427,1753201843106,-558.99,0.00018676,2]
[374095428,1753201843116,-460.0,0.00018676,2]
[374095429,1753201843125,-460.0,0.00018676,2]
[374095430,1753201843135,-1534.86,0.00018677,2]
[374095431,1753201843144,-460.0,0.00018678,2]
[374095432,1753201843153,-460.0,0.00018678,2]
[374095433,1753201843162,-522.0,0.00018679,2]
[374095435,1753201843172,-460.0,0.00018679,2]
[374095437,1753201843181,-897.23,0.00018679,2]
[374095438,1753201843191,-151.0,0.00018693,2]
[374095439,1753201843201,-151.0,0.00018693,2]
[374095440,1753201843211,-151.0,0.00018693,2]
[374095441,1753201843220,-215.0738,0.00018693,2]
[374095443,1753201843230,-151.0,0.00018693,2]
[374095445,1753201843239,-151.0,0.00018693,2]
[374095446,1753201843249,-151.0,0.00018693,2]
[374095447,1753201843259,-279.60102579,0.00018693,2]
[374095448,1753201843268,-25000.0,0.00018693,2]
[374095449,1753201843277,-1033.093537,0.00018725,2]
[374095450,1753201843286,-1109.63266383,0.00018728,2]
[374095451,1753201843296,-160.0,0.0001875,2]
[374095452,1753201843305,-1559.51,0.00018755,2]
[374095453,1753201843315,-990.03,0.00018755,2]
[374095454,1753201843324,-944.46,0.00018755,2]
[374095455,1753201843333,-779.94,0.00018755,2]
[374095456,1753201843343,-460.0,0.00018755,2]
[374095457,1753201843352,-1883.93,0.00018755,2]
[374095458,1753201843362,-500.0,0.00018756,2]
[374095459,1753201843371,-460.0,0.00018756,2]
[374095460,1753201843381,-460.0,0.00018756,2]
[374095461,1753201843390,-460.0,0.00018756,2]
[374095462,1753201843400,-460.0,0.00018756,2]
[374095463,1753201843409,-911.02,0.00018756,2]
[374095464,1753201843419,-1314.88,0.00018756,2]
[374095465,1753201843428,-302.96970909,0.000189,2]
[374095466,1753201843438,-814.84895092,0.000189,2]
[374095467,1753201843448,-728.48431328,0.00018922,2]
[374095469,1753201843457,-912.0,0.00018948,2]
[374095470,1753201843467,-460.0,0.00018949,2]
[374095471,1753201843478,-460.0,0.00018949,2]
[374095472,1753201843489,-558.99,0.0001895,2]
[374095473,1753201843499,-460.0,0.0001895,2]
[374095474,1753201843509,-460.0,0.0001895,2]
[374095475,1753201843518,-1534.86,0.00018951,2]
[374095476,1753201843528,-460.0,0.00018952,2]
[374095477,1753201843538,-460.0,0.00018952,2]
[374095478,1753201843547,-522.0,0.00018953,2]
[374095479,1753201843556,-460.0,0.00018953,2]
[374095480,1753201843565,-897.23,0.00018953,2]
[374095481,1753201843575,-1330.93779917,0.00019,5]
[374095482,1753201843585,-18000.0,0.00019,2]
[374095483,1753201843594,-1109.63266383,0.00019003,2]
[374095484,1753201843604,-1559.51,0.00019029,2]
[374095485,1753201843614,-990.03,0.00019029,2]
[374095486,1753201843629,-944.46,0.00019029,2]
[374095487,1753201843643,-779.94,0.00019029,2]
[374095488,1753201843652,-460.0,0.00019029,2]
[374095489,1753201843662,-500.0,0.0001903,2]
[374095491,1753201843671,-518.78682023,0.0001903,2]
[374095493,1753201843681,-460.0,0.0001903,2]
[374095494,1753201843693,-205.43,0.0001903,2]
[374095496,1753201843703,-460.0,0.0001903,2]
[374095497,1753201843712,-911.02,0.0001903,2]
[374095498,1753201843721,-1314.88,0.0001903,2]
[374095499,1753201843736,-172.667001,0.00019178,2]
[374095500,1753201843746,-460.0,0.00019223,2]
[374095501,1753201843755,-460.0,0.00019223,2]
[374095502,1753201843766,-558.99,0.00019224,2]
[374095503,1753201843776,-460.0,0.00019224,2]
[374095504,1753201843785,-154.13278373,0.00019224,2]
[374095505,1753201843795,-1534.86,0.00019225,2]
[374095506,1753201843804,-460.0,0.00019226,2]
[374095507,1753201843813,-460.0,0.00019226,2]
[374095508,1753201843823,-522.0,0.00019227,2]
[374095509,1753201843833,-460.0,0.00019227,2]
[374095510,1753201843842,-897.23,0.00019227,2]
[374095511,1753201843853,-25000.0,0.00019241,2]
[374095512,1753201843862,-1109.63266383,0.00019279,2]
[374095513,1753201843871,-800.0,0.00019298,2]
[374095514,1753201843881,-260.0,0.00019298,2]
[374095515,1753201843891,-1559.51,0.00019303,2]
[374095516,1753201843901,-990.03,0.00019303,2]
[374095517,1753201843910,-944.46,0.00019303,2]
[374095518,1753201843920,-779.94,0.00019303,2]
[374095519,1753201843929,-538.67411851,0.00019303,2]
[374095520,1753201843939,-500.0,0.00019304,2]
[374095521,1753201843948,-555.17269013,0.00019304,2]
[374095522,1753201843958,-460.0,0.00019304,2]
[374095523,1753201843968,-911.02,0.00019304,2]
[374095524,1753201843980,-1314.88,0.00019304,2]
[374095525,1753201843990,-728.48431328,0.00019401,2]
[374095526,1753201844000,-460.0,0.00019497,2]
[374095527,1753201844009,-460.0,0.00019497,2]
[374095528,1753201844019,-558.99,0.00019498,2]
[374095529,1753201844029,-460.0,0.00019498,2]
[374095530,1753201844038,-500.0,0.00019499,2]
[374095531,1753201844048,-500.0,0.00019499,2]
[374095532,1753201844057,-500.0,0.00019499,2]
[374095533,1753201844067,-351.65767758,0.00019499,2]
[374095534,1753201844076,-188.56524149,0.00019499,2]
[374095535,1753201844085,-1534.86,0.00019499,2]
[374095536,1753201844095,-4034.77340292,0.000195,2]
[374095537,1753201844105,-460.0,0.000195,2]
[374095538,1753201844114,-753247.95266022,0.000195,2]
[374095539,1753201844123,-460.0,0.000195,2]
[374095540,1753201844133,-522.0,0.00019501,2]
[374095541,1753201844142,-460.0,0.00019501,2]
[374095542,1753201844151,-897.23,0.00019501,2]
[374095543,1753201844161,-1109.63266383,0.00019555,2]
[374095544,1753201844171,-1559.51,0.00019577,2]
[374095545,1753201844181,-990.03,0.00019577,2]
[374095546,1753201844191,-944.46,0.00019577,2]
[374095547,1753201844201,-779.94,0.00019577,2]